[Event "*** SCC Grand Prix: Titled Tuesday Blitz"]
[Site "Chess.com"]
[Date "2020.10.06"]
[Round "7"]
[White "rugbyclub"]
[Black "tk22h"]
[Result "1/2-1/2"]
[WhiteElo "2182"]
[BlackElo "2335"]
[TimeControl "180+1"]
[EndTime "11:18:38 PDT"]
[Termination "Game drawn by agreement"]

1. c4 {[%clk 0:03:00.9]} 1... e5 {[%clk 0:02:58.5]} 2. g3 {[%clk 0:02:58.8]}
2... Nc6 {[%clk 0:02:58.3]} 3. Bg2 {[%clk 0:02:56.1]} 3... g6 {[%clk 0:02:58.4]}
4. Nc3 {[%clk 0:02:55.1]} 4... Bg7 {[%clk 0:02:58.5]} 5. e3 {[%clk 0:02:52.7]}
5... d6 {[%clk 0:02:58.7]} 6. Nge2 {[%clk 0:02:53.1]} 6... f5 {[%clk 0:02:58.4]}
7. O-O {[%clk 0:02:52.5]} 7... Nf6 {[%clk 0:02:58.4]} 8. d4 {[%clk 0:02:52]}
8... O-O {[%clk 0:02:58]} 9. Rb1 {[%clk 0:02:50.7]} 9... a5 {[%clk 0:02:52.6]}
10. a3 {[%clk 0:02:50.6]} 10... h6 {[%clk 0:02:50.1]} 11. b4 {[%clk 0:02:50.3]}
11... axb4 {[%clk 0:02:50.5]} 12. axb4 {[%clk 0:02:49.8]} 12... e4 {[%clk
0:02:50.8]} 13. b5 {[%clk 0:02:45.6]} 13... Ne7 {[%clk 0:02:50.8]} 14. f3 {[%clk
0:02:41.2]} 14... exf3 {[%clk 0:02:49.3]} 15. Bxf3 {[%clk 0:02:40.1]} 15... c6
{[%clk 0:02:49.3]} 16. Qb3 {[%clk 0:02:32.8]} 16... Be6 {[%clk 0:02:47.7]} 17.
d5 {[%clk 0:02:23.1]} 17... cxd5 {[%clk 0:02:46.9]} 18. cxd5 {[%clk 0:02:22.6]}
18... Bf7 {[%clk 0:02:46]} 19. b6 {[%clk 0:02:13.6]} 19... Ra5 {[%clk
0:02:41.4]} 20. Rd1 {[%clk 0:02:05.5]} 20... g5 {[%clk 0:02:39.1]} 21. Ba3
{[%clk 0:01:58.1]} 21... Ng6 {[%clk 0:02:38.2]} 22. Bb4 {[%clk 0:01:56.5]} 22...
Ra6 {[%clk 0:02:36.1]} 23. Ba3 {[%clk 0:01:51.7]} 23... Ne5 {[%clk 0:02:33.4]}
24. Bg2 {[%clk 0:01:49.5]} 24... Nfg4 {[%clk 0:02:32.1]} 25. e4 {[%clk 0:01:31]}
25... Ne3 {[%clk 0:02:26.9]} 26. Re1 {[%clk 0:01:30.7]} 26... Nxg2 {[%clk
0:02:18.4]} 27. Kxg2 {[%clk 0:01:29.8]} 27... fxe4 {[%clk 0:02:11.6]} 28. Nxe4
{[%clk 0:01:28.9]} 28... Bg6 {[%clk 0:02:06.4]} 29. N2c3 {[%clk 0:01:22.5]}
29... Nd3 {[%clk 0:01:57.4]} 30. Re3 {[%clk 0:01:18]} 30... Rxa3 {[%clk
0:01:18.8]} 31. Qxa3 {[%clk 0:01:16]} 31... Ne5 {[%clk 0:01:13.4]} 32. Qxd6
{[%clk 0:00:55.5]} 32... Qxd6 {[%clk 0:01:02.8]} 33. Nxd6 {[%clk 0:00:55.4]}
33... Bxb1 {[%clk 0:01:02]} 34. Nxb1 {[%clk 0:00:55.8]} 34... Rd8 {[%clk
0:00:51.6]} 35. Nxb7 {[%clk 0:00:47.6]} 35... Rxd5 {[%clk 0:00:51.3]} 36. Nc3
{[%clk 0:00:40.6]} 36... Rd2+ {[%clk 0:00:47.9]} 37. Re2 {[%clk 0:00:36.3]}
37... Rxe2+ {[%clk 0:00:41]} 38. Nxe2 {[%clk 0:00:35.7]} 38... Nc4 {[%clk
0:00:41.1]} 39. Nc5 {[%clk 0:00:31]} 39... Nxb6 {[%clk 0:00:40.9]} 40. Ne6
{[%clk 0:00:31.4]} 1/2-1/2

[Event "*** SCC Grand Prix: Titled Tuesday Blitz"]
[Site "Chess.com"]
[Date "2020.10.06"]
[Round "7"]
[White "Alexander_Donchenko"]
[Black "QuintilianoR"]
[Result "1-0"]
[WhiteElo "2768"]
[BlackElo "2584"]
[TimeControl "180+1"]
[EndTime "11:18:40 PDT"]
[Termination "Alexander_Donchenko won on time"]

1. Nf3 {[%clk 0:03:00.9]} 1... d5 {[%clk 0:02:59.3]} 2. g3 {[%clk 0:03:01.5]}
2... Nf6 {[%clk 0:02:59.6]} 3. Bg2 {[%clk 0:03:02]} 3... e6 {[%clk 0:03:00.2]}
4. O-O {[%clk 0:03:02.5]} 4... Be7 {[%clk 0:03:00.6]} 5. c4 {[%clk 0:03:02.7]}
5... O-O {[%clk 0:03:01]} 6. b3 {[%clk 0:03:03.3]} 6... c5 {[%clk 0:03:01.1]} 7.
Bb2 {[%clk 0:03:03.9]} 7... b6 {[%clk 0:03:01.3]} 8. e3 {[%clk 0:03:04.4]} 8...
Nc6 {[%clk 0:03:00.4]} 9. Nc3 {[%clk 0:03:04.1]} 9... dxc4 {[%clk 0:03:00.1]}
10. bxc4 {[%clk 0:03:04]} 10... Bb7 {[%clk 0:03:00.5]} 11. Qe2 {[%clk
0:03:04.2]} 11... a6 {[%clk 0:02:59]} 12. Rad1 {[%clk 0:03:03.2]} 12... Qc7
{[%clk 0:02:57.6]} 13. Ne1 {[%clk 0:03:01.4]} 13... Rfd8 {[%clk 0:02:52.9]} 14.
f4 {[%clk 0:03:01.1]} 14... Rac8 {[%clk 0:02:51.5]} 15. g4 {[%clk 0:03:01]}
15... Na7 {[%clk 0:02:47]} 16. g5 {[%clk 0:02:59.2]} 16... Ne8 {[%clk 0:02:47]}
17. Ne4 {[%clk 0:02:53.6]} 17... b5 {[%clk 0:02:36.8]} 18. cxb5 {[%clk 0:02:47]}
18... axb5 {[%clk 0:02:35.9]} 19. Be5 {[%clk 0:02:46.1]} 19... Qb6 {[%clk
0:02:35.1]} 20. Qh5 {[%clk 0:02:40.5]} 20... Bd5 {[%clk 0:02:11]} 21. d3 {[%clk
0:02:12.9]} 21... c4 {[%clk 0:02:02.6]} 22. Bd4 {[%clk 0:02:11.5]} 22... Qb7
{[%clk 0:02:01.4]} 23. Rf3 {[%clk 0:02:05.5]} 23... Bxe4 {[%clk 0:01:11.3]} 24.
dxe4 {[%clk 0:02:06.4]} 24... Qxe4 {[%clk 0:01:10.9]} 25. f5 {[%clk 0:02:06.8]}
25... Nc6 {[%clk 0:00:33]} 26. Rh3 {[%clk 0:02:02.5]} 26... Qxf5 {[%clk
0:00:31.2]} 27. Bxc6 {[%clk 0:01:40.9]} 27... Rxc6 {[%clk 0:00:30.2]} 28. Nf3
{[%clk 0:01:40.1]} 28... Bc5 {[%clk 0:00:26.3]} 29. Rf1 {[%clk 0:01:39]} 29...
Qg6 {[%clk 0:00:25.1]} 30. Qxg6 {[%clk 0:01:35.6]} 30... hxg6 {[%clk 0:00:20.9]}
31. Ne5 {[%clk 0:01:35.8]} 31... Bxd4 {[%clk 0:00:20.6]} 32. Nxc6 {[%clk
0:01:20.8]} 32... Bxe3+ {[%clk 0:00:16.1]} 33. Rxe3 {[%clk 0:01:21.7]} 33... Rd7
{[%clk 0:00:15.3]} 34. Ne5 {[%clk 0:01:19.4]} 34... Ra7 {[%clk 0:00:13.8]} 35.
Rd1 {[%clk 0:01:14.1]} 35... f6 {[%clk 0:00:12]} 36. Rd8 {[%clk 0:01:11.9]}
36... Kf8 {[%clk 0:00:09.3]} 37. Nc6 {[%clk 0:01:03.3]} 1-0

[Event "*** SCC Grand Prix: Titled Tuesday Blitz"]
[Site "Chess.com"]
[Date "2020.10.06"]
[Round "7"]
[White "grzechu96"]
[Black "DariaVoit"]
[Result "1-0"]
[WhiteElo "2693"]
[BlackElo "2511"]
[TimeControl "180+1"]
[EndTime "11:18:41 PDT"]
[Termination "grzechu96 won by checkmate"]

1. e4 {[%clk 0:03:00.9]} 1... Nf6 {[%clk 0:02:59.2]} 2. e5 {[%clk 0:03:01]} 2...
Nd5 {[%clk 0:02:59.4]} 3. d4 {[%clk 0:03:01.2]} 3... d6 {[%clk 0:02:59.9]} 4. c4
{[%clk 0:03:01.7]} 4... Nb6 {[%clk 0:03:00]} 5. exd6 {[%clk 0:03:02.4]} 5...
exd6 {[%clk 0:03:00.3]} 6. Nc3 {[%clk 0:03:01.6]} 6... Bf5 {[%clk 0:02:54.4]} 7.
g4 {[%clk 0:02:45.8]} 7... Bg6 {[%clk 0:02:52.5]} 8. Bg2 {[%clk 0:02:46.1]} 8...
Nc6 {[%clk 0:02:49.6]} 9. b3 {[%clk 0:02:45.1]} 9... Be7 {[%clk 0:02:46.2]} 10.
Nge2 {[%clk 0:02:41.5]} 10... h5 {[%clk 0:02:45.2]} 11. Nf4 {[%clk 0:02:37]}
11... Bf6 {[%clk 0:02:26.2]} 12. Nxg6 {[%clk 0:02:34.1]} 12... fxg6 {[%clk
0:02:27.1]} 13. Be3 {[%clk 0:02:32.6]} 13... Qe7 {[%clk 0:02:14.9]} 14. Bxc6+
{[%clk 0:02:17.5]} 14... bxc6 {[%clk 0:02:15.8]} 15. Qf3 {[%clk 0:02:18]} 15...
Bxd4 {[%clk 0:02:01.6]} 16. Qxc6+ {[%clk 0:02:06.3]} 16... Kf7 {[%clk
0:02:01.6]} 17. Nd5 {[%clk 0:01:58.7]} 17... Qe4 {[%clk 0:01:49.3]} 18. O-O-O
{[%clk 0:01:17.9]} 18... Bxe3+ {[%clk 0:00:23.1]} 19. fxe3 {[%clk 0:01:18.8]}
19... Rhe8 {[%clk 0:00:20.6]} 20. Qxc7+ {[%clk 0:01:12.2]} 20... Kg8 {[%clk
0:00:20]} 21. Qxd6 {[%clk 0:01:03.8]} 21... hxg4 {[%clk 0:00:10.5]} 22. Qf4
{[%clk 0:00:46.9]} 22... Qg2 {[%clk 0:00:07]} 23. Rhg1 {[%clk 0:00:43.2]} 23...
Qxa2 {[%clk 0:00:06.3]} 24. Rxg4 {[%clk 0:00:37.9]} 24... Qxb3 {[%clk
0:00:04.6]} 25. Nf6+ {[%clk 0:00:37.8]} 25... gxf6 {[%clk 0:00:02.4]} 26. Rxg6+
{[%clk 0:00:38.2]} 26... Kh7 {[%clk 0:00:01.7]} 27. Qh6# {[%clk 0:00:38.6]} 1-0

[Event "*** SCC Grand Prix: Titled Tuesday Blitz"]
[Site "Chess.com"]
[Date "2020.10.06"]
[Round "7"]
[White "IANOV0007"]
[Black "Sacbutt"]
[Result "1-0"]
[WhiteElo "2425"]
[BlackElo "2278"]
[TimeControl "180+1"]
[EndTime "11:18:42 PDT"]
[Termination "IANOV0007 won by resignation"]

1. Nf3 {[%clk 0:02:15.6]} 1... b6 {[%clk 0:02:56.5]} 2. g3 {[%clk 0:02:14.9]}
2... Bb7 {[%clk 0:02:57.4]} 3. Bg2 {[%clk 0:02:15]} 3... Nf6 {[%clk 0:02:58]} 4.
c4 {[%clk 0:02:14.5]} 4... g6 {[%clk 0:02:58.3]} 5. O-O {[%clk 0:02:14.2]} 5...
Bg7 {[%clk 0:02:58.9]} 6. Nc3 {[%clk 0:02:14.2]} 6... c5 {[%clk 0:02:57.7]} 7.
d3 {[%clk 0:02:13.4]} 7... O-O {[%clk 0:02:57.7]} 8. e4 {[%clk 0:02:12.7]} 8...
d6 {[%clk 0:02:57.7]} 9. Bg5 {[%clk 0:02:11.9]} 9... Nbd7 {[%clk 0:02:55.7]} 10.
Qd2 {[%clk 0:02:10.4]} 10... Re8 {[%clk 0:02:55]} 11. Bh6 {[%clk 0:02:10.1]}
11... Bh8 {[%clk 0:02:55.4]} 12. Rfe1 {[%clk 0:02:09.8]} 12... e5 {[%clk
0:02:55.3]} 13. Bg5 {[%clk 0:02:09.1]} 13... Bg7 {[%clk 0:02:50.8]} 14. Rad1
{[%clk 0:02:07]} 14... a6 {[%clk 0:02:49.2]} 15. h4 {[%clk 0:02:06.7]} 15... Qc7
{[%clk 0:02:44]} 16. Bh3 {[%clk 0:02:04.4]} 16... Bc6 {[%clk 0:02:38.2]} 17. Nd5
{[%clk 0:02:03.3]} 17... Bxd5 {[%clk 0:02:35.5]} 18. cxd5 {[%clk 0:02:01.5]}
18... b5 {[%clk 0:02:32.1]} 19. Rc1 {[%clk 0:02:01]} 19... Qb7 {[%clk
0:02:26.5]} 20. b3 {[%clk 0:01:58.3]} 20... a5 {[%clk 0:02:25.3]} 21. a4 {[%clk
0:01:56.3]} 21... Reb8 {[%clk 0:02:20]} 22. Qc2 {[%clk 0:01:54.9]} 22... h6
{[%clk 0:02:15.2]} 23. Be3 {[%clk 0:01:54]} 23... Ra6 {[%clk 0:01:53.8]} 24. Nd2
{[%clk 0:01:52.5]} 24... bxa4 {[%clk 0:01:34.7]} 25. bxa4 {[%clk 0:01:51.7]}
25... Qb2 {[%clk 0:01:34.5]} 26. Nc4 {[%clk 0:01:51]} 26... Qxc2 {[%clk
0:01:32.8]} 27. Rxc2 {[%clk 0:01:51]} 27... Rb4 {[%clk 0:01:32.8]} 28. Ra1
{[%clk 0:01:50.1]} 28... Ne8 {[%clk 0:01:29.5]} 29. Bd2 {[%clk 0:01:48.5]} 29...
Nb6 {[%clk 0:00:58.9]} 30. Bxb4 {[%clk 0:01:45.6]} 30... axb4 {[%clk 0:00:58.4]}
31. Nxb6 {[%clk 0:01:45.3]} 31... Rxb6 {[%clk 0:00:58.1]} 32. a5 {[%clk
0:01:44.7]} 32... Ra6 {[%clk 0:00:56.4]} 33. Bc8 {[%clk 0:01:43.8]} 33... Ra7
{[%clk 0:00:56.6]} 34. a6 {[%clk 0:01:42]} 34... Nc7 {[%clk 0:00:56.4]} 35. Bb7
{[%clk 0:01:41]} 35... Kf8 {[%clk 0:00:56]} 36. Ra5 {[%clk 0:01:39.4]} 36... Ke7
{[%clk 0:00:55.8]} 37. Kf1 {[%clk 0:01:38.2]} 37... Kd7 {[%clk 0:00:53.5]} 38.
Ke2 {[%clk 0:01:37.4]} 38... Na8 {[%clk 0:00:52]} 39. Rb5 {[%clk 0:01:32.9]}
39... Nc7 {[%clk 0:00:46.2]} 40. Rb6 {[%clk 0:01:32.2]} 40... Bf8 {[%clk
0:00:44.5]} 41. Ra2 {[%clk 0:01:31.5]} 41... Be7 {[%clk 0:00:44.6]} 42. Kd2
{[%clk 0:01:29.9]} 42... Bd8 {[%clk 0:00:38.7]} 43. Kc2 {[%clk 0:01:27.3]} 43...
Nxd5 {[%clk 0:00:32.9]} 44. Bc6+ {[%clk 0:01:25.6]} 44... Kc7 {[%clk 0:00:26.4]}
45. Rb7+ {[%clk 0:01:25.3]} 45... Rxb7 {[%clk 0:00:19.9]} 46. axb7 {[%clk
0:01:25.1]} 46... Nb6 {[%clk 0:00:12.7]} 47. Ra8 {[%clk 0:01:22.3]} 47... Kxc6
{[%clk 0:00:08.7]} 48. b8=Q {[%clk 0:01:20.6]} 48... Nxa8 {[%clk 0:00:08]} 49.
Qxa8+ {[%clk 0:01:20.2]} 1-0

[Event "*** SCC Grand Prix: Titled Tuesday Blitz"]
[Site "Chess.com"]
[Date "2020.10.06"]
[Round "7"]
[White "GukeshDommaraju"]
[Black "Konavets"]
[Result "0-1"]
[WhiteElo "2800"]
[BlackElo "3005"]
[TimeControl "180+1"]
[EndTime "11:18:45 PDT"]
[Termination "Konavets won by resignation"]

1. d4 {[%clk 0:03:00.9]} 1... Nf6 {[%clk 0:02:59.9]} 2. Nf3 {[%clk 0:03:00.8]}
2... d5 {[%clk 0:02:59]} 3. Bf4 {[%clk 0:03:00.4]} 3... c5 {[%clk 0:02:58]} 4.
e3 {[%clk 0:03:00.4]} 4... e6 {[%clk 0:02:58.5]} 5. Nbd2 {[%clk 0:02:59.9]} 5...
Bd6 {[%clk 0:02:57.9]} 6. dxc5 {[%clk 0:02:57.1]} 6... Bxf4 {[%clk 0:02:56.5]}
7. exf4 {[%clk 0:02:57.1]} 7... Qc7 {[%clk 0:02:57.2]} 8. g3 {[%clk 0:02:55.5]}
8... Qxc5 {[%clk 0:02:57.3]} 9. Bd3 {[%clk 0:02:55.7]} 9... O-O {[%clk
0:02:56.9]} 10. O-O {[%clk 0:02:55.8]} 10... b6 {[%clk 0:02:57.4]} 11. Nb3
{[%clk 0:02:54.3]} 11... Qc7 {[%clk 0:02:57]} 12. Nbd4 {[%clk 0:02:54]} 12...
Ba6 {[%clk 0:02:57.1]} 13. Ne5 {[%clk 0:02:52.9]} 13... Bxd3 {[%clk 0:02:56]}
14. cxd3 {[%clk 0:02:44.1]} 14... Nbd7 {[%clk 0:02:56.2]} 15. Rc1 {[%clk
0:02:43]} 15... Qb7 {[%clk 0:02:56.3]} 16. Ndc6 {[%clk 0:02:37.6]} 16... Rfe8
{[%clk 0:02:53.2]} 17. Qa4 {[%clk 0:02:10]} 17... Nc5 {[%clk 0:02:47]} 18. Qb4
{[%clk 0:02:04.4]} 18... Nfd7 {[%clk 0:02:44]} 19. d4 {[%clk 0:01:50]} 19...
Nxe5 {[%clk 0:02:41.2]} 20. Nxe5 {[%clk 0:01:50.2]} 20... Ne4 {[%clk 0:02:28.8]}
21. Rc6 {[%clk 0:01:35.2]} 21... f6 {[%clk 0:02:25.2]} 22. Rfc1 {[%clk
0:01:25.5]} 22... fxe5 {[%clk 0:02:25.2]} 23. Rc7 {[%clk 0:01:16.6]} 23... Qa6
{[%clk 0:02:25.5]} 24. dxe5 {[%clk 0:01:16.5]} 24... Qe2 {[%clk 0:02:21.1]} 25.
R1c2 {[%clk 0:01:12.9]} 25... Qf3 {[%clk 0:02:14]} 26. Qb5 {[%clk 0:00:59.4]}
26... Nc5 {[%clk 0:01:54.3]} 27. Rc3 {[%clk 0:00:59.3]} 27... Qd1+ {[%clk
0:01:49.3]} 28. Kg2 {[%clk 0:00:59.3]} 28... d4 {[%clk 0:01:43.9]} 29. Rf3
{[%clk 0:00:43.9]} 29... Qb1 {[%clk 0:01:11.8]} 30. f5 {[%clk 0:00:37.7]} 30...
exf5 {[%clk 0:01:08.1]} 31. Qc4+ {[%clk 0:00:37.2]} 31... Kh8 {[%clk 0:00:51.7]}
32. Qf7 {[%clk 0:00:24.7]} 32... Ne6 {[%clk 0:00:51.8]} 33. Rxa7 {[%clk
0:00:22]} 33... Qe4 {[%clk 0:00:42]} 34. Rxa8 {[%clk 0:00:19.4]} 34... Qxa8
{[%clk 0:00:42.9]} 35. Kg1 {[%clk 0:00:19.5]} 35... Rf8 {[%clk 0:00:38.6]} 0-1

[Event "*** SCC Grand Prix: Titled Tuesday Blitz"]
[Site "Chess.com"]
[Date "2020.10.06"]
[Round "7"]
[White "RaunakSadhwani2005"]
[Black "731291"]
[Result "1-0"]
[WhiteElo "2901"]
[BlackElo "2653"]
[TimeControl "180+1"]
[EndTime "11:18:48 PDT"]
[Termination "RaunakSadhwani2005 won by resignation"]

1. c4 {[%clk 0:03:00.9]} 1... e5 {[%clk 0:00:13.3]} 2. Nc3 {[%clk 0:02:59.2]}
2... d6 {[%clk 0:00:12.9]} 3. g3 {[%clk 0:02:57]} 3... f5 {[%clk 0:00:13.3]} 4.
Bg2 {[%clk 0:02:57.3]} 4... Nf6 {[%clk 0:00:13.8]} 5. d4 {[%clk 0:02:57.9]} 5...
e4 {[%clk 0:00:13.9]} 6. f3 {[%clk 0:02:58]} 6... exf3 {[%clk 0:00:13.9]} 7.
exf3 {[%clk 0:02:58.9]} 7... Be7 {[%clk 0:00:14.7]} 8. Nge2 {[%clk 0:02:59.4]}
8... O-O {[%clk 0:00:15.3]} 9. O-O {[%clk 0:03:00.3]} 9... c6 {[%clk 0:00:15.8]}
10. d5 {[%clk 0:03:00.7]} 10... Na6 {[%clk 0:00:15.9]} 11. Nf4 {[%clk
0:03:00.9]} 11... Nc7 {[%clk 0:00:15.9]} 12. Re1 {[%clk 0:03:00.7]} 12... Re8
{[%clk 0:00:16.2]} 13. Be3 {[%clk 0:02:58.7]} 13... Bf8 {[%clk 0:00:16.5]} 14.
Qd2 {[%clk 0:02:59.1]} 14... c5 {[%clk 0:00:16.5]} 15. a3 {[%clk 0:02:59.4]}
15... a6 {[%clk 0:00:16.7]} 16. b4 {[%clk 0:02:59.7]} 16... b6 {[%clk 0:00:17]}
17. Rab1 {[%clk 0:02:59.8]} 17... Bd7 {[%clk 0:00:17.1]} 18. a4 {[%clk 0:03:00]}
18... Rb8 {[%clk 0:00:15]} 19. Nd3 {[%clk 0:02:54.1]} 19... g6 {[%clk
0:00:14.5]} 20. a5 {[%clk 0:02:51.5]} 20... cxb4 {[%clk 0:00:13.7]} 21. Rxb4
{[%clk 0:02:49.4]} 21... bxa5 {[%clk 0:00:13.7]} 22. Rxb8 {[%clk 0:02:49.4]}
22... Qxb8 {[%clk 0:00:14.6]} 23. Rb1 {[%clk 0:02:46.6]} 23... Qc8 {[%clk
0:00:14.3]} 24. Bb6 {[%clk 0:02:46]} 24... a4 {[%clk 0:00:14.1]} 25. Qa2 {[%clk
0:02:41.6]} 25... Bg7 {[%clk 0:00:12.6]} 26. Nxa4 {[%clk 0:02:40.6]} 26... a5
{[%clk 0:00:12.7]} 27. Bxa5 {[%clk 0:02:35.4]} 27... Na6 {[%clk 0:00:11.2]} 28.
Nb6 {[%clk 0:02:31.9]} 28... Qc7 {[%clk 0:00:11.2]} 29. Nxd7 {[%clk 0:02:23.5]}
29... Qxd7 {[%clk 0:00:12.1]} 30. Bb6 {[%clk 0:02:24.2]} 30... Nc7 {[%clk
0:00:10.7]} 31. Qa7 {[%clk 0:02:19.4]} 31... Rc8 {[%clk 0:00:10.7]} 32. Qb7
{[%clk 0:02:17.1]} 32... Kh8 {[%clk 0:00:10.4]} 33. Nf4 {[%clk 0:02:13.7]} 33...
g5 {[%clk 0:00:08.2]} 34. Nh3 {[%clk 0:02:02.1]} 34... h6 {[%clk 0:00:07.7]} 35.
Bd4 {[%clk 0:01:49.1]} 35... Kh7 {[%clk 0:00:07.2]} 36. Nf2 {[%clk 0:01:48.3]}
36... Re8 {[%clk 0:00:03]} 37. Bh3 {[%clk 0:01:48.5]} 37... g4 {[%clk
0:00:03.1]} 38. fxg4 {[%clk 0:01:47.9]} 38... fxg4 {[%clk 0:00:04]} 39. Bf1
{[%clk 0:01:48.7]} 39... h5 {[%clk 0:00:04.3]} 40. Bd3+ {[%clk 0:01:49.2]} 40...
Kg8 {[%clk 0:00:04.8]} 41. Rf1 {[%clk 0:01:46]} 41... Re7 {[%clk 0:00:04.8]} 42.
c5 {[%clk 0:01:40.7]} 42... Ncxd5 {[%clk 0:00:03]} 43. Qxd7 {[%clk 0:01:35.4]}
43... Nxd7 {[%clk 0:00:03.1]} 44. cxd6 {[%clk 0:01:31.7]} 44... Re6 {[%clk
0:00:02.4]} 45. Bc4 {[%clk 0:01:31.7]} 45... Rxd6 {[%clk 0:00:02]} 46. Bxg7
{[%clk 0:01:25.9]} 46... Kxg7 {[%clk 0:00:02.2]} 47. Ne4 {[%clk 0:01:26.5]}
47... Re6 {[%clk 0:00:02.6]} 48. Bxd5 {[%clk 0:01:26.4]} 48... Re5 {[%clk
0:00:03]} 49. Rf7+ {[%clk 0:01:26.4]} 49... Kg6 {[%clk 0:00:02.7]} 50. Rxd7
{[%clk 0:01:27.3]} 1-0

[Event "*** SCC Grand Prix: Titled Tuesday Blitz"]
[Site "Chess.com"]
[Date "2020.10.06"]
[Round "7"]
[White "Kavyev_Ruslan"]
[Black "annazero"]
[Result "1-0"]
[WhiteElo "2587"]
[BlackElo "2403"]
[TimeControl "180+1"]
[EndTime "11:18:48 PDT"]
[Termination "Kavyev_Ruslan won by resignation"]

1. d4 {[%clk 0:02:59.4]} 1... d5 {[%clk 0:02:58.9]} 2. c4 {[%clk 0:02:59.6]}
2... c6 {[%clk 0:02:59]} 3. Nf3 {[%clk 0:03:00]} 3... Nf6 {[%clk 0:02:57.5]} 4.
g3 {[%clk 0:03:00.2]} 4... Bf5 {[%clk 0:02:54.7]} 5. Nc3 {[%clk 0:02:59.4]} 5...
e6 {[%clk 0:02:53.7]} 6. Nh4 {[%clk 0:02:58.8]} 6... Bg6 {[%clk 0:02:49.6]} 7.
Qb3 {[%clk 0:02:57.1]} 7... Qb6 {[%clk 0:02:48.8]} 8. Nxg6 {[%clk 0:02:56.8]}
8... hxg6 {[%clk 0:02:47.3]} 9. c5 {[%clk 0:02:57.2]} 9... Qc7 {[%clk
0:02:46.5]} 10. Bg2 {[%clk 0:02:47.7]} 10... b6 {[%clk 0:02:45.1]} 11. Bf4
{[%clk 0:02:43.8]} 11... Qd8 {[%clk 0:02:44.2]} 12. a4 {[%clk 0:02:35.5]} 12...
Nbd7 {[%clk 0:02:38]} 13. cxb6 {[%clk 0:02:31.5]} 13... axb6 {[%clk 0:02:35.4]}
14. O-O {[%clk 0:02:32]} 14... Be7 {[%clk 0:02:31.1]} 15. e4 {[%clk 0:02:28.2]}
15... O-O {[%clk 0:02:22.4]} 16. Rac1 {[%clk 0:02:14.6]} 16... Ne8 {[%clk
0:01:56.5]} 17. Na2 {[%clk 0:02:05.7]} 17... Rc8 {[%clk 0:01:38.4]} 18. Nb4
{[%clk 0:02:02.6]} 18... c5 {[%clk 0:01:35]} 19. exd5 {[%clk 0:01:14.3]} 19...
cxb4 {[%clk 0:01:30.4]} 20. Rxc8 {[%clk 0:01:15.2]} 20... Qxc8 {[%clk
0:01:28.7]} 21. dxe6 {[%clk 0:01:16.1]} 21... Ndf6 {[%clk 0:01:21.8]} 22. exf7+
{[%clk 0:01:07.3]} 22... Rxf7 {[%clk 0:01:21.8]} 23. Rc1 {[%clk 0:01:04.7]}
23... Qf5 {[%clk 0:01:17.2]} 24. Re1 {[%clk 0:00:49.2]} 24... Bd6 {[%clk
0:01:04.8]} 25. Be5 {[%clk 0:00:40.5]} 25... Ng4 {[%clk 0:01:01.5]} 26. f4
{[%clk 0:00:34.3]} 26... Nxe5 {[%clk 0:00:58]} 27. dxe5 {[%clk 0:00:32.1]} 27...
Bc5+ {[%clk 0:00:57.6]} 28. Kh1 {[%clk 0:00:32.7]} 28... Kh8 {[%clk 0:00:55.8]}
29. Be4 {[%clk 0:00:31.1]} 29... Qd7 {[%clk 0:00:42.5]} 30. e6 {[%clk
0:00:31.2]} 30... Qd2 {[%clk 0:00:42.1]} 31. Rd1 {[%clk 0:00:31.5]} 31... Qe2
{[%clk 0:00:38.8]} 32. Bf3 {[%clk 0:00:31.6]} 1-0

[Event "*** SCC Grand Prix: Titled Tuesday Blitz"]
[Site "Chess.com"]
[Date "2020.10.06"]
[Round "7"]
[White "JoliyRoger"]
[Black "JuliaEfremova"]
[Result "1-0"]
[WhiteElo "2465"]
[BlackElo "2323"]
[TimeControl "180+1"]
[EndTime "11:18:48 PDT"]
[Termination "JoliyRoger won by resignation"]

1. d4 {[%clk 0:03:00.9]} 1... Nf6 {[%clk 0:02:59.2]} 2. c4 {[%clk 0:03:01.3]}
2... g6 {[%clk 0:02:59]} 3. Nc3 {[%clk 0:03:00.7]} 3... c5 {[%clk 0:02:57.8]} 4.
d5 {[%clk 0:03:00.5]} 4... d6 {[%clk 0:02:56.4]} 5. e4 {[%clk 0:03:01]} 5... Bg7
{[%clk 0:02:56.9]} 6. h3 {[%clk 0:03:01.5]} 6... O-O {[%clk 0:02:57.1]} 7. Nf3
{[%clk 0:03:02.1]} 7... Na6 {[%clk 0:02:57.4]} 8. Bd3 {[%clk 0:03:02.3]} 8...
Nc7 {[%clk 0:02:57.7]} 9. O-O {[%clk 0:03:02.9]} 9... a6 {[%clk 0:02:57.4]} 10.
Re1 {[%clk 0:03:02.6]} 10... b5 {[%clk 0:02:56.6]} 11. cxb5 {[%clk 0:03:01.6]}
11... axb5 {[%clk 0:02:57.5]} 12. Nxb5 {[%clk 0:02:56.5]} 12... Nxb5 {[%clk
0:02:57.3]} 13. Bxb5 {[%clk 0:02:57.1]} 13... Ba6 {[%clk 0:02:57.9]} 14. Bc6
{[%clk 0:02:48.9]} 14... Ra7 {[%clk 0:02:55.9]} 15. Bd2 {[%clk 0:02:39.8]} 15...
Qc7 {[%clk 0:02:46.4]} 16. Bc3 {[%clk 0:02:38.4]} 16... Rb8 {[%clk 0:02:46.6]}
17. e5 {[%clk 0:02:21.3]} 17... Nd7 {[%clk 0:02:37.6]} 18. e6 {[%clk 0:01:47.7]}
18... Bxc3 {[%clk 0:02:22.5]} 19. exf7+ {[%clk 0:01:26.6]} 19... Kxf7 {[%clk
0:02:22.2]} 20. bxc3 {[%clk 0:01:25.3]} 20... Nf8 {[%clk 0:02:17.8]} 21. Ng5+
{[%clk 0:01:22.4]} 21... Kg8 {[%clk 0:02:16.5]} 22. Qf3 {[%clk 0:01:22.7]} 22...
e5 {[%clk 0:02:06.6]} 23. dxe6 {[%clk 0:01:21.2]} 23... Qg7 {[%clk 0:01:47.4]}
24. Bd5 {[%clk 0:01:17.6]} 24... Re7 {[%clk 0:01:46]} 25. c4 {[%clk 0:01:00.5]}
25... h6 {[%clk 0:01:28.2]} 26. Ne4 {[%clk 0:00:59.4]} 26... Kh8 {[%clk
0:01:14.4]} 27. Nxd6 {[%clk 0:00:54.6]} 27... Nxe6 {[%clk 0:01:12.4]} 28. Bxe6
{[%clk 0:00:28.1]} 28... Rxe6 {[%clk 0:01:11.9]} 29. Nf7+ {[%clk 0:00:24.7]}
29... Kh7 {[%clk 0:01:11.3]} 30. Rxe6 {[%clk 0:00:20.4]} 30... Qxa1+ {[%clk
0:01:10.6]} 31. Kh2 {[%clk 0:00:20.9]} 31... Bxc4 {[%clk 0:00:54.5]} 32. Re7
{[%clk 0:00:20.6]} 32... Qg7 {[%clk 0:00:53.6]} 33. Ng5+ {[%clk 0:00:20]} 33...
hxg5 {[%clk 0:00:54.5]} 34. Rxg7+ {[%clk 0:00:20.2]} 34... Kxg7 {[%clk
0:00:55.4]} 35. Qc3+ {[%clk 0:00:20.1]} 35... Kh6 {[%clk 0:00:51.4]} 36. Qxc4
{[%clk 0:00:21]} 36... Ra8 {[%clk 0:00:52.3]} 37. Qc3 {[%clk 0:00:18.8]} 37...
g4 {[%clk 0:00:49.5]} 38. a3 {[%clk 0:00:18.9]} 38... gxh3 {[%clk 0:00:48.7]}
39. Qxh3+ {[%clk 0:00:19.4]} 39... Kg7 {[%clk 0:00:47.5]} 40. Qc3+ {[%clk
0:00:19.8]} 40... Kh6 {[%clk 0:00:47.1]} 41. Qxc5 {[%clk 0:00:20.7]} 1-0